{"text_format":"1","workbook":"xlsx","n_sheets":3,"sheets":["Sheet1","Sheet2","Sheet3"],"not_rendered":{"charts":0,"images":1,"macros":1,"external_links":0,"defined_names":0,"comments":0,"pivot_tables":0},"unopened":[],"bounds":{"document_bytes":16777216,"sheet_cells":100000,"rows_first":2000,"rows_last":500,"rows_between":2000,"halvings":0,"cell_chars":16384,"cell_head_chars":4096},"cells_cut":0,"cells_raw":0,"read":"whole","date_system":"1900"}

{"sheet":"Sheet1","index":0,"n_rows":31,"n_cols":10,"rows_kept":31,"cut":false,"hidden":false,"merged":[]}
[null,null,null,null,null,"ヘロンの面積計算"]
[null,null,null,null,null,"          s=(a+b+c)/2"]
[null,null,null,null,null,"      面積=sqrt(s(s-a)(s-b)(s-c))"]
[null,null,null,null,"no","a","b","c","面積","備考"]
[null,null,null,null,1,3,5,4,{"$f":"heron(F5,G5,H5)","v":6}]
[null,null,null,null,2,1,1.7320507999999999,2,{"$f":"heron(F6,G6,H6)","v":0.86602539999999972}]
[null,null,null,null,3,1,1,1.4139999999999999,0.4999999771989993]
[null,null,null,null,4,1,1.7320507999999999,2,0.86602539999999972]
[null,null,null,null,5,1,1,1.4139999999999999,0.4999999771989993]
[null,null,null,null,6,null,null,null,0]
[null,null,null,null,7,null,null,null,0]
[null,null,null,null,8,null,null,null,0]
[null,null,null,null,9,null,null,null,0]
[null,null,null,null,10,null,null,null,0]
[null,null,null,null,11,null,null,null,0]
[null,null,null,null,12,null,null,null,0]
[null,null,null,null,13,null,null,null,0]
[null,null,null,null,14,null,null,null,0]
[null,null,null,null,15,null,null,null,0]
[null,null,null,null,16,null,null,null,0]
[null,null,null,null,17,null,null,null,0]
[null,null,null,null,18,null,null,null,0]
[null,null,null,null,19,null,null,null,0]
[null,null,null,null,20,null,null,null,0]
[null,null,null,null,21,null,null,null,0]
[null,null,null,null,22,null,null,null,0]
[null,null,null,null,23,null,null,null,0]
[null,null,null,null,24,null,null,null,0]
[null,null,null,null,25,null,null,null,0]
[null,null,null,null,26,null,null,null,0]
[null,null,null,null,null,null,null,"合計",{"$f":"SUM(I5:I30)","v":8.7320507543979975}]

{"sheet":"Sheet2","index":1,"n_rows":0,"n_cols":0,"rows_kept":0,"cut":false,"hidden":false,"merged":[]}

{"sheet":"Sheet3","index":2,"n_rows":0,"n_cols":0,"rows_kept":0,"cut":false,"hidden":false,"merged":[]}